[Event "Portuguese Chess-ch 2022"]
[Site "Leiria"]
[Date "2022.09.19"]
[Round "9.3"]
[White "Rocha, Sergio"]
[Black "Martins, Bruno Andre Leite"]
[Result "0-1"]
[ECO "D37"]
[WhiteElo "2324"]
[BlackElo "2308"]
[Annotator "TA"]
[PlyCount "146"]
[EventDate "2022.09.11"]
[EventCountry "POR"]
[SourceTitle "playchess.com"]
[Source "ChessBase"]
[SourceQuality "1"]
[TimeControl "5400+30"]

{[%evp 9,146,21,29,9,16,8,11,3,15,14,26,24,19,20,20,20,26,18,23,38,51,22,29,32,35,22,34,11,17,9,13,17,16,14,18,0,0,0,0,0,0,-5,0,-31,21,12,21,-26,30,-18,40,9,10,0,0,-15,0,-26,-4,-48,0,0,14,0,14,-127,-143,-153,-99,-99,-70,-75,-95,-233,-228,-302,-275,-604,-631,-615,-500,-459,-445,-426,-411,-428,-402,-464,-419,-498,-490,-554,-564,-677,-554,-554,-554,-554,-554,-547,-478,-758,-708,-757,-451,-479,-475,-425,-382,-777,-391,-612,-485,-474,-471,-688,-672,-531,-424,-532,-518,-463,-488,-526,-504,-709,-602,-1101,-1093,-29988,-1093,-29951,-5882,-29988,-29989,-29988,-29990,-29990,-29990]} 1. Nf3 {[%emt 0:00:04]} Nf6 {[%emt 0:08:38]} 2. c4 {[%emt 0:00:07]} e6 {[%emt 0:02:00]} 3. d4 {[%emt 0:00:37]} d5 {[%emt 0:01:01]} 4. Nc3 {[%emt 0:00:25]} a6 {[%emt 0:00:22]} 5. cxd5 {[%emt 0:00:14]} exd5 {[%emt 0:00:07] RECAPT} 6. Bf4 {[%emt 0:00:33] CPLX 2.0 20 (Bc1-g5) (=20). D37: Queen's Gambit Declined: 5 Bf4.} Bd6 {[%emt 0:00:36] CPLX 2.2} 7. Bxd6 {[%emt 0:00:15] BESTDEEP} Qxd6 {[%emt 0:00:06] RECAPT} 8. Qc2 {[%emt 0:00:11] CPLX 2.0 8 (e2-e3) (=9). The position is equal.} O-O {[%emt 0:01:42] CPLX 2.0 12 (g7-g6) (=3)} 9. e3 {[%emt 0:00:11] BESTDEEP} Nbd7 {[%emt 0:03:59] CPLX 2.1 12 (Rf8-e8) (=5)} 10. Be2 {[%emt 0:00:37] CPLX 2.0 2 (Ra1-c1) (=6)} b6 {[%emt 0:03:25] CPLX 2.0 0 (c7-c5) (=4)} 11. O-O {[%emt 0:00:18] CPLX 2.0} Bb7 {[%emt 0:00:38] CPLX 2.1} 12. Rfd1 {[%emt 0:02:17] [#] BESTDEEP} Rfd8 $146 {[%emt 0:04:28] CPLX 2.1 6 (c7-c5) (=4)} ({Predecessor:} 12... Rfe8 13. Rac1 Rac8 14. Qb1 c5 15. dxc5 bxc5 16. b3 Qe7 17. Qb2 Nf8 18. Rc2 Ne6 {0-1 (28) Khademalsharieh,S (2450)-Ju,W (2568) Abu Dhabi 2016}) 13. Qa4 {[%emt 0:09:25] CPLX 2.1 8 (a2-a3) (=5)} c5 {[%emt 0:04:51] CPLX 2.3 5 (Rd8-e8) (=4)} 14. Qa3 {[%emt 0:01:39] BESTDEEP} Rac8 {[%emt 0:06:00] CPLX 2.3 13 (Qd6-e7) (=5)} 15. h3 {[%emt 0:02:29] CPLX 2.3 29 (d4xc5) (=7)} (15. Bxa6 $2 Ra8 16. Bxb7 Rxa3 17. bxa3 Qc7 $19) 15... Qe6 {[%emt 0:08:33] CPLX 2.4 7 (Qd6-e7) (=5)} 16. dxc5 {[%emt 0:07:36] BESTDEEP} (16. Bxa6 Ra8 17. Bxb7 (17. Ng5 $2 Qf5 $19) 17... Rxa3 18. bxa3 c4 $17) 16... bxc5 {[%emt 0:00:38] RECAPT} 17. Rac1 {[%emt 0:00:49] CPLX 2.4} Rc7 {[%emt 0:05:36] CPLX 2.4 12 (Nd7-b6) (=5)} 18. Qa4 {[%emt 0:09:56] CPLX 2.4 23 (b2-b4) (=7)} h6 {[%emt 0:04:04] CPLX 2.5 6 (Rc7-c8) (=5)} 19. Qf4 {[%emt 0:02:41] CPLX 2.6} Rcc8 {[%emt 0:01:50] CPLX 2.9 4 (Rd8-c8) (=5)} 20. Bd3 {[%emt 0:06:06] CPLX 2.8 0 (b2-b3) (=6)} Nh5 {[%emt 0:07:03] BESTDEEP} 21. Qf5 {[%emt 0:16:18] CPLX 3.8} Nhf6 {[%emt 0:02:22] CPLX 4.4} 22. Na4 {[%emt 0:04:57] CPLX 3.2 18 (Qf5xe6) (=6)} Qe7 {[%emt 0:06:30] CPLX 3.3} 23. Nc3 {[%emt 0:02:23] CPLX 3.2 0 (b2-b3) (=6)} Nf8 {[%emt 0:01:18] CPLX 3.1 0 (Qe7-e6) (=4)} 24. Qe5 {[%emt 0:01:05] Prevents d4. CPLX 3.1} Ne6 {[%emt 0:01:22] CPLX 3.2} 25. Bf5 {[%emt 0:05:26] CPLX 2.9 5 (Nf3-h4) (=6)} Rd6 {[%emt 0:05:03] MISS-d5-d4 5 (d5-d4) (=4)} 26. Qg3 {[%emt 0:07:12][%cal Oe3e4] CPLX 3.0 31 (b2-b3) (=7)} Nh5 {[%emt 0:06:00] RELBLUND 52 (Rc8-d8) (=6)} (26... Rcd8 $15) 27. Qh4 $11 {[%emt 0:01:59] BESTDEEP} Nf6 {[%emt 0:02:54][%cal Od5d4] BESTDEEP} 28. Ne2 {[%emt 0:05:00] Inhibits d4. CPLX 2.9 47 (Nf3-e5) (=8)} (28. Ne5 {is more appropriate.}) 28... Rc7 {[%emt 0:06:18] RELBLUND 56 (d5-d4) (=8)} (28... d4 $142) 29. Ng3 {[%emt 0:00:32] CPLX 2.9 48 (b2-b4) (=10)} (29. b4 $142) 29... Kf8 {[%emt 0:04:36] RELBLUND 58 (Rd6-b6) (=10)} ({Black should play} 29... Rb6 $11) 30. Bd3 {[%emt 0:01:40] CPLX 2.7 31 (Bf5xe6) (=11)} Ng8 {[%emt 0:00:28] BESTDEEP} 31. Qa4 {[%emt 0:01:29] CPLX 2.7 10 (Qh4xe7) (=11)} g6 {[%emt 0:00:30] Inhibits Nf5. CPLX 2.6} 32. a3 {[%emt 0:01:31] CPLX 2.6 15 (Rd1-e1) (=11)} Nf6 {[%emt 0:01:57] CPLX 2.6 15 (c5-c4) (=9)} 33. Ne5 {[%emt 0:02:32][%cal Od3g6] CPLX 2.6 26 (Qa4-h4) (=11)} Kg7 {[%emt 0:01:30] CPLX 3.2 22 (Nf6-d7) (=10)} 34. Qh4 {[%emt 0:01:17][%cal Od3f5] CPLX 3.3 44 (Bd3-f5) (=13)} d4 {[%emt 0:00:25] CPLX 4.1 48 (Rd6-b6) (=11)} (34... Rb6 $15 {might be stronger.} 35. Rb1 Qd6) 35. e4 {[%emt 0:01:11] CPLX 4.5 0 (Ne5-c4) (=12)} Ng5 {[%emt 0:00:17] White must now prevent ...Nd7. CPLX 4.3 14 (Rd6-d8) (=11)} 36. Nc4 {[%emt 0:00:21] Strongly threatening e5. CPLX 4.4} Re6 {[%emt 0:00:33][%cal Rf6e4] CPLX 3.7 14 (Nf6xe4) (=11)} 37. e5 {[%emt 0:00:51] MISSDEEP-f2-f4 141 (f2-f4) (=16)} (37. f4 $1 $11 Nfxe4 38. fxg5 hxg5 39. Qg4) 37... Nd7 $1 $17 {[%emt 0:00:30][%cal Og5f3] DEEPSTRONG=>BLUNDERREACT} 38. Qg4 {[%emt 0:00:33] Against Nf3+. And now f4 would win. CPLX 4.6 10 (Qh4-f4) (=16)} h5 {[%emt 0:00:40] CPLX 4.0 54 (Nd7xe5) (=12)} (38... Nxe5 $142 39. Nxe5 Rxe5) 39. Qf4 {[%emt 0:02:37] CPLX 4.4} Nxe5 {[%emt 0:00:10] CPLX 4.5 29 (h5-h4) (=13)} 40. Nxe5 {[%emt 0:00:00] RECAPT} Rxe5 {[%emt 0:00:00] RECAPT} 41. b4 {[%emt 0:00:00] [#] White does not recover from this. CPLX 3.8 138 (h3-h4) (=18)} (41. h4 $17 Nh7 42. b4) 41... h4 $1 $19 {[%emt 0:00:00] BESTDEEP} ({Less strong is} 41... cxb4 42. Rxc7 Qxc7 {[#]} 43. Nf5+ $1 gxf5 44. Qxg5+ Kf8 45. axb4 $14) 42. Ne2 {[%emt 0:00:00] CPLX 4.2 74 (Ng3-f1) (=20)} Bf3 {[%emt 0:00:00] CPLX 3.7 27 (Ng5-e4) (=12)} (42... cxb4 43. Rxc7 Qxc7 44. axb4 $15) 43. Rd2 {[%emt 0:00:00] CPLX 4.4 329 (b4xc5) (=28)} (43. bxc5 Bxe2 44. Bxe2 Rxe2 45. Qxd4+ f6 46. c6) 43... c4 {[%emt 0:00:00] DEEPSTRONG=>BLUNDERREACT} (43... Bxe2 $2 44. Rxe2 Rxe2 45. Bxe2 $19) ({Worse is} 43... Rxe2 44. Bxe2 Bxe2 45. Rxc5 (45. Rxe2 $2 Qxe2 46. Qxc7 Ne6 $19) 45... Rxc5 46. Qxd4+ Re5 47. f4 $11) 44. Rdc2 {[%emt 0:00:00] BESTDEEP} Bxe2 {[%emt 0:00:00] CPLX 4.4 115 (c4xd3) (=15)} 45. Bxe2 {[%emt 0:00:00] RECAPT} Re4 {[%emt 0:00:16] CPLX 3.3 14 (Rc7-d7) (=15)} ({Not} 45... Rxe2 $2 46. Rxe2 Qxe2 47. Qxc7 $19) 46. Qd2 {[%emt 0:00:00] CPLX 3.7} c3 {[%emt 0:01:20] EASY} 47. Qd3 {[%emt 0:00:00] CPLX 3.4 17 (Qd2-d1) (=26)} Rc6 {[%emt 0:00:54][%cal Bc7c6,Bc6e6,Be6b6][%mdl 32] CPLX 3.1 26 (Qe7-e5) (=15)} 48. Rb1 {[%emt 0:00:00] CPLX 3.1 62 (f2-f3) (=26)} Rce6 {[%emt 0:00:38][%cal Re4e2] CPLX 3.1 45 (Rc6-d6) (=15)} 49. Bf1 {[%emt 0:00:00] CPLX 3.1 79 (Rb1-f1) (=28)} Qf6 {[%emt 0:01:16] CPLX 3.0} 50. a4 {[%emt 0:00:00] CPLX 3.1 64 (Qd3-d1) (=28)} Re1 {[%emt 0:00:23] CPLX 3.1} 51. Rcc1 {[%emt 0:00:00] CPLX 4.2 113 (Rb1-c1) (=30)} Rxc1 {[%emt 0:00:11] CPLX 4.5 123 (Re6-e2) (=17)} 52. Rxc1 {[%emt 0:00:00] RECAPT} Rb6 {[%emt 0:00:45] BESTDEEP} 53. b5 {[%emt 0:00:00] CPLX 3.1} axb5 {[%emt 0:00:24] CPLX 3.2} 54. axb5 {[%emt 0:00:00] RECAPT} Ne6 {[%emt 0:01:00] BESTDEEP} 55. Ra1 {[%emt 0:00:00] CPLX 2.6 280 (Rc1-e1) (=33)} (55. Re1 $142 Rd6 56. Rd1) 55... Qe5 {[%emt 0:00:56] CPLX 2.6 50 (Ne6-f4) (=17)} 56. Ra7 {[%emt 0:00:00] CPLX 2.8 49 (Ra1-d1) (=34)} Qb8 {[%emt 0:00:55] CPLX 3.5 306 (Rb6-d6) (=22)} 57. Ra6 {[%emt 0:00:00] CPLX 3.4 28 (Ra7-a2) (=34)} Qc7 {[%emt 0:00:21] Hoping for ...Rxa6. CPLX 2.9 4 (Qb8-d6) (=22)} 58. Ra1 {[%emt 0:01:35] BESTDEEP} Qc5 {[%emt 0:00:14] CPLX 2.7 43 (Qc7-d6) (=22)} 59. Qf3 $2 {[%emt 0:02:13] CPLX 2.6 395 (Qd3-e4) (=40)} (59. Qe4) 59... Qf5 {[%emt 0:00:50] CPLX 3.1 386 (Rb6xb5) (=29)} 60. Qe2 {[%emt 0:02:03] CPLX 3.0 221 (Qf3xf5) (=43)} (60. Qxf5 $142 gxf5 61. Rc1) 60... Nf4 {[%emt 0:00:28] CPLX 3.0 127 (Rb6-d6) (=31)} 61. Qc4 {[%emt 0:00:14]} Qd5 {[%emt 0:00:35] aiming for ...Qxc4.} 62. Qc7 (62. Ra4 $142 Qxc4 63. Rxc4 Rxb5 64. Rxd4) 62... Qd6 {[%emt 0:00:14]} 63. Qc4 {[%emt 0:00:59]} Ne6 {[%emt 0:00:18]} 64. Rd1 {[%emt 0:02:57]} Qe5 {[%emt 0:00:16]} 65. Qb4 {[%emt 0:01:09]} Qc7 {[%emt 0:00:30]} 66. Be2 {[%emt 0:01:45]} Rd6 {[%emt 0:00:36]} 67. Bc4 {[%emt 0:01:18]} Qc5 {[%emt 0:00:17]} 68. Qb3 {[%emt 0:00:06]} Nf4 {[%emt 0:00:11] ( -> ...Qg5)} 69. Rb1 {[%emt 0:00:41]} Rb6 {[%emt 0:00:28]} (69... Qg5 $142 70. Bf1 Nxh3+ 71. Kh2 Nxf2 72. Be2 Qg3+ 73. Kg1 h3 74. Qxf7+ Kxf7 75. Bf3 h2+ 76. Kf1 h1=Q+ 77. Ke2 Re6+ 78. Be4 Rxe4#) 70. Rd1 {[%emt 0:00:31]} Qg5 {[%emt 0:00:24][%csl Gf4,LRg2,LRh3][%cal Rg5g2]} 71. Bf1 {[%emt 0:00:04]} Nxh3+ {[%emt 0:00:22] Black mates.} 72. Kh2 {[%emt 0:00:04]} Nxf2 {[%emt 0:00:16]} 73. Rxd4 {[%emt 0:00:07]} Qe5+ {[%emt 0:00:05] Weighted Error Value: White=0.48/Black=0.36} 0-1

[Event "Portuguese Chess-ch 2022"]
[Site "Leiria"]
[Date "2022.09.19"]
[Round "9.4"]
[White "Fernandes, Antonio"]
[Black "Fidalgo, Andre"]
[Result "1-0"]
[ECO "E04"]
[WhiteElo "2327"]
[BlackElo "2258"]
[Annotator "TA"]
[PlyCount "117"]
[EventDate "2022.09.11"]
[EventCountry "POR"]
[SourceTitle "playchess.com"]
[Source "ChessBase"]
[SourceQuality "1"]
[TimeControl "5400+30"]

{[%evp 22,116,42,54,68,60,75,67,70,71,72,75,77,77,93,83,85,33,35,23,31,32,31,17,16,7,8,5,9,9,6,6,51,33,45,0,26,17,42,39,44,39,75,58,81,80,189,195,249,253,279,275,269,269,319,316,324,325,307,294,399,374,389,370,461,458,489,503,484,0,343,0,408,378,415,371,429,425,512,642,616,612,1212,1108,1402,6444,6069,5996,5114,5110,2144,1682,5949,5422,29998,29999,29999]} 1. d4 {[%emt 0:08:03]} Nf6 {[%emt 0:00:10]} 2. c4 {[%emt 0:01:02]} e6 {[%emt 0:00:41]} 3. g3 {[%emt 0:01:32]} d5 {[%emt 0:00:10]} 4. Nf3 {[%emt 0:00:49]} dxc4 {[%emt 0:00:09]} 5. Bg2 {[%emt 0:00:37]} c5 {[%emt 0:00:19]} 6. O-O {[%emt 0:01:50][%cal Bh1f1,Bf1d1,Bd1d4,Bd4c4,Bc4c2][%mdl 32]} Nc6 {[%emt 0:04:23]} 7. Qa4 {[%emt 0:03:09]} cxd4 {[%emt 0:06:41]} 8. Nxd4 {[%emt 0:04:46]} Qxd4 {[%emt 0:02:24]} 9. Bxc6+ {[%emt 0:00:12]} Bd7 {[%emt 0:00:23]} 10. Rd1 {[%emt 0:00:19]} Bxc6 {[%emt 0:00:12] 10...Qxd1+ is vanishing.} 11. Qxc6+ {[%emt 0:00:05]} bxc6 {[%emt 0:00:08]} 12. Rxd4 {[%emt 0:00:04] EASY} Nd5 {[%emt 0:07:09][%cal Bf6d5,Bd5b6,Bb6d7,Bd7e5,Be5g4][%mdl 32] CPLX 2.1 14 (Bf8-e7) (=14). E04: Open Catalan: 5 Nf3.} 13. Rxc4 {[%emt 0:01:18] CPLX 2.1} c5 {[%emt 0:01:00] CPLX 2.0 15 (Bf8-e7) (=15)} 14. Na3 {[%emt 0:20:36] CPLX 2.0 8 (e2-e4) (=3)} Be7 {[%emt 0:00:56] CPLX 2.0. White is slightly better.} 15. e4 {[%emt 0:10:14] CPLX 2.0} Nb6 {[%emt 0:05:50] [#] CPLX 2.0 1 (Nd5-b4) (=8)} 16. Rc2 {[%emt 0:00:58] CPLX 2.1} O-O {[%emt 0:08:47] CPLX 2.0} 17. Be3 {[%emt 0:00:16] [#] CPLX 2.0} Rfc8 $146 {[%emt 0:06:19] CPLX 2.0 16 (Rf8-d8) (=8)} ({Predecessor:} 17... Rac8 18. Rac1 Rfd8 19. Bxc5 Bxc5 20. Rxc5 Rxc5 21. Rxc5 Rd1+ 22. Kg2 Ra1 23. Nc4 Rc1 {1-0 (39) Postny,E (2601)-Amit,Y (2160) Ramat Gan 2019}) 18. Rac1 {[%emt 0:00:55][%cal Re3c5,Ba1c1,Bc1c4,Bc4c7][%mdl 32] CPLX 2.0} Nd7 {[%emt 0:00:29] CPLX 2.0 2 (Rc8-b8) (=7)} 19. b4 {[%emt 0:10:14] CPLX 2.0 52 (Na3-c4) (=8)} (19. Nc4 $16) 19... c4 $14 {[%emt 0:04:32] BESTDEEP} 20. Rxc4 {[%emt 0:00:09] CPLX 2.1 12 (Na3xc4) (=8)} Rxc4 {[%emt 0:00:39] RECAPT} 21. Rxc4 {[%emt 0:00:02] Rc7 is the strong threat. RECAPT 0 (Na3xc4) (=7)} Ne5 {[%emt 0:00:44] EASY} 22. Rc7 {[%emt 0:03:00][%csl LRa7,LRe7] CPLX 2.1} Bxb4 {[%emt 0:00:09] CPLX 2.3} 23. Nc2 {[%emt 0:10:30] CPLX 2.3 9 (Na3-b5) (=7)} a5 {[%emt 0:02:21] BESTDEEP} 24. f4 {[%emt 0:05:52] CPLX 2.2 3 (Nc2xb4) (=6)} Bd6 {[%emt 0:07:18] CPLX 2.3} 25. Rc3 {[%emt 0:02:23] CPLX 2.3} Ng4 {[%emt 0:00:33] CPLX 2.0} 26. Bd2 {[%emt 0:02:53] CPLX 2.0 0 (Rc3-c6) (=6)} e5 {[%emt 0:05:57] CPLX 2.0 45 (h7-h5) (=6)} 27. Rc6 {[%emt 0:06:25] CPLX 2.0 18 (Rc3-c4) (=6)} Bf8 {[%emt 0:00:21] BESTDEEP} 28. a4 {[%emt 0:00:32] CPLX 2.0 45 (Kg1-g2) (=9)} h6 {[%emt 0:06:15] CPLX 2.0 26 (Ng4-f6) (=7)} 29. Rc4 {[%emt 0:00:22] BESTDEEP} Nf6 {[%emt 0:01:26] MISS-e5xf4 25 (e5xf4) (=8)} 30. Ne3 {[%emt 0:02:13] BESTDEEP} Nd7 {[%emt 0:04:31] CPLX 2.0 5 (e5xf4) (=8)} 31. Nd5 $1 {[%emt 0:00:09] Prevents Nb6. DEEPSTRONG} Bc5+ {[%emt 0:01:40] CPLX 2.0 36 (Nd7-c5) (=9)} 32. Kg2 {[%emt 0:00:14] CPLX 2.0} Bd4 {[%emt 0:04:26] CPLX 2.0 23 (e5xf4) (=10)} 33. Kf3 {[%emt 0:00:05] White is more active. Black is on the road to losing. CPLX 2.0} Ra7 {[%emt 0:09:27] [#] CPLX 2.0 109 (h6-h5) (=14)} (33... h5 $16 {keeps fighting.}) 34. Ne7+ $1 $18 {[%emt 0:00:45] DEEPSTRONG=>BLUNDERREACT} Kh7 {[%emt 0:00:58] CPLX 2.0 54 (Kg8-f8) (=16)} (34... Kf8 $142) 35. Nc6 $1 {[%emt 0:00:06][%csl LRa5,LRa7,LRd4] CPLX 2.1} Ra8 {[%emt 0:08:31] CPLX 2.5 26 (Ra7-b7) (=17)} 36. Nxd4 {[%emt 0:00:25] EASY} exd4 {[%emt 0:00:08] RECAPT} 37. Rxd4 {[%emt 0:01:40][%mdl 4096] Endgame KRB-KRN. RECAPT} Nb6 {[%emt 0:00:08] CPLX 2.0 50 (Nd7-c5) (=17)} 38. e5 {[%emt 0:00:44] CPLX 2.0} Kg8 {[%emt 0:01:17] CPLX 2.0 8 (h6-h5) (=17)} 39. f5 {[%emt 0:01:20] CPLX 2.0} Kf8 {[%emt 0:00:30] CPLX 2.0} 40. g4 {[%emt 0:00:00] BESTDEEP} Ke7 {[%emt 0:00:00] CPLX 2.0 105 (Kf8-e8) (=19)} 41. h4 {[%emt 0:00:00] CPLX 2.0} Nd7 {[%emt 0:00:00] CPLX 2.0 15 (Ke7-e8) (=19)} 42. Kf4 {[%emt 0:00:00] BESTDEEP} Nb6 {[%emt 0:00:00] CPLX 2.0 91 (Ke7-e8) (=21)} 43. Ke4 {[%emt 0:00:00] CPLX 2.0} Nd7 {[%emt 0:00:00] CPLX 2.0 31 (Ke7-f8) (=22)} 44. Rc4 {[%emt 0:00:00] Inhibits Nc5+. CPLX 2.0} Nb6 {[%emt 0:00:00] CPLX 2.0 0 (Ke7-e8) (=21)} 45. Rd4 {[%emt 0:00:31] CPLX 2.1 400 (Rc4-c7) (=16)} Nd7 {[%emt 0:00:00] DEEPSTRONG=>BLUNDERREACT} 46. Kf4 {[%emt 0:05:07] CPLX 2.0 343 (Bd2-c3) (=25)} Nb6 {[%emt 0:00:00] RELBLUND=>BLUNDERREACT} 47. Bc3 {[%emt 0:00:20] CPLX 2.0 30 (h4-h5) (=26)} Nd7 {[%emt 0:00:00] CPLX 2.0 37 (Ke7-e8) (=20)} 48. h5 {[%emt 0:00:30] CPLX 2.0 44 (Rd4-c4) (=26)} Nb6 {[%emt 0:00:00] CPLX 2.0 58 (Ke7-e8) (=21)} 49. Ke4 {[%emt 0:00:05] CPLX 2.0} Nd7 {[%emt 0:00:00] CPLX 2.0 87 (Ke7-f8) (=23)} 50. Rc4 {[%emt 0:00:12] CPLX 2.0} Nb6 {[%emt 0:00:00] CPLX 2.0} 51. Rc7+ {[%emt 0:00:13] EASY} Kf8 {[%emt 0:00:00] BEVAL 400 (Nb6-d7) (=32)} 52. Bd4 {[%emt 0:00:21] BEVAL 104 (e5-e6) (=26)} Rb8 {[%emt 0:00:00] BEVAL 294 (Nb6xa4) (=38)} 53. e6 {[%emt 0:00:53] BEVAL} fxe6 {[%emt 0:00:00] BEVAL} 54. fxe6 {[%emt 0:00:08] BEVAL} Nxa4 {[%emt 0:00:00] BEVAL} 55. Rf7+ {[%emt 0:00:29] BEVAL} Ke8 {[%emt 0:00:00] BEVAL} 56. Rxg7 {[%emt 0:00:11] BEVAL} Rb4 {[%emt 0:00:00] BEVAL 400 (Rb8-b5) (=44)} 57. Ke5 {[%emt 0:00:57][%cal Oe5f6] Threatening mate with Kf6! BEVAL} Nb6 {[%emt 0:00:00] RELBLUND 400 (Ke8-d8) (=52)} 58. Rg8+ {[%emt 0:00:12] EASY} Ke7 {[%emt 0:00:00] LEGAL} 59. Bc5# {[%emt 0:00:10] Weighted Error Value: White=0.23 (precise) /Black=0.38} 1-0